bitfinex/quotes_BTCUSD_20250428
["timestamp","ask_amount","ask_price","bid_price","bid_amount"]
[1745839101002,0.0134703,95351.0,95350.0,0.37418109]
[1745839101427,0.0134703,95351.0,95350.0,0.39334786]
[1745839101952,0.0134703,95351.0,95350.0,0.49214786]
[1745839102489,0.0134703,95351.0,95350.0,0.71121025]
[1745839103540,0.0014703,95351.0,95350.0,0.70921025]
[1745839103743,0.0004703,95351.0,95350.0,0.70921025]
[1745839104002,0.0134703,95351.0,95350.0,0.71121025]
[1745839104196,0.0014703,95351.0,95350.0,0.71021025]
[1745839104430,0.0124703,95351.0,95350.0,0.71021025]
[1745839104827,0.0124703,95351.0,95350.0,0.71121025]
[1745839105767,0.0004703,95351.0,95350.0,0.71021025]
[1745839105976,0.0004703,95351.0,95350.0,0.59224348]
[1745839106239,0.0004703,95351.0,95350.0,0.32899981]
[1745839106578,0.0104703,95351.0,95350.0,0.3289998]
[1745839106856,0.0114703,95351.0,95350.0,0.3299998]
[1745839107252,0.0114703,95351.0,95350.0,0.53975333]
[1745839107457,0.0114703,95351.0,95350.0,0.3299998]
[1745839107620,0.0114703,95351.0,95350.0,0.3203349]
[1745839108021,0.0114703,95351.0,95350.0,0.53008843]
[1745839109986,0.0114703,95351.0,95350.0,0.5398022]
[1745839111670,0.0114703,95351.0,95350.0,0.69549234]
[1745839111995,0.0114703,95351.0,95350.0,0.69549233]
[1745839112199,0.0114703,95351.0,95350.0,0.71492228]
[1745839113959,0.0114703,95351.0,95350.0,0.69549233]
[1745839114318,0.0114703,95351.0,95350.0,0.74149233]
[1745839114744,0.0114703,95351.0,95350.0,0.75603318]
[1745839115106,0.0104703,95351.0,95350.0,0.75503318]
[1745839115301,0.0104703,95351.0,95350.0,0.75603318]
[1745839115506,0.0114703,95351.0,95350.0,0.75603317]
[1745839115748,0.0014703,95351.0,95350.0,0.43593879]
[1745839115942,0.0104703,95351.0,95350.0,0.54689232]
[1745839116144,0.0114703,95351.0,95350.0,0.64669232]
[1745839116347,0.0014703,95351.0,95350.0,0.32904865]
[1745839117048,0.0014703,95351.0,95350.0,0.33004865]
[1745839117049,0.0104703,95351.0,95350.0,0.33004865]
[1745839117254,0.0104703,95351.0,95350.0,0.44100218]
[1745839117415,0.0104703,95351.0,95350.0,0.53980218]
[1745839117575,0.0104703,95351.0,95350.0,0.33004865]
[1745839118219,0.0104703,95351.0,95350.0,0.53980218]
[1745839120516,0.0104703,95351.0,95350.0,0.53980217]
[1745839122234,0.0104703,95351.0,95350.0,0.3220454]
[1745839124256,0.01783373,95351.0,95350.0,0.3220454]
[1745839125283,0.01783373,95351.0,95350.0,0.2232454]
[1745839125455,0.0104703,95351.0,95350.0,0.3218854]
[1745839127172,0.01783443,95351.0,95350.0,0.53941421]
[1745839128800,0.0104703,95351.0,95350.0,0.53941421]
[1745839131032,0.0104703,95351.0,95350.0,0.32966068]
[1745839131376,0.0104703,95351.0,95350.0,0.53941421]
[1745839134758,0.0104703,95351.0,95350.0,0.64630434]
[1745839134965,0.0104703,95351.0,95350.0,0.66084519]
[1745839136854,0.0104703,95351.0,95350.0,0.56220519]
[1745839137055,0.0104703,95351.0,95350.0,0.66084519]
[1745839138877,0.0104703,95351.0,95350.0,0.70804519]
[1745839139347,0.0104703,95351.0,95350.0,0.90804518]
[1745839140190,0.0014703,95351.0,95350.0,0.90704518]
[1745839140392,0.0104703,95351.0,95350.0,0.90804518]
[1745839141343,0.0094703,95351.0,95350.0,0.90704518]
[1745839141542,0.0104703,95351.0,95350.0,0.90804518]
[1745839142057,0.0004246,95362.0,95357.0,0.25853814]
[1745839142259,0.0004246,95362.0,95361.0,0.22427019]
[1745839142456,0.0004246,95362.0,95361.0,0.38043279]
[1745839143278,0.0004246,95362.0,95361.0,0.39014656]
[1745839143482,0.0004246,95362.0,95361.0,0.39014655]
[1745839143618,0.0084246,95362.0,95361.0,0.39114655]
[1745839144491,0.0084246,95362.0,95361.0,0.6022057]
[1745839144979,0.0084246,95362.0,95361.0,0.9422057]
[1745839145951,0.0004246,95362.0,95361.0,0.9412057]
[1745839146122,0.0004246,95362.0,95361.0,0.96059389]
[1745839146324,0.0004246,95362.0,95361.0,0.96059388]
[1745839146499,0.0004246,95362.0,95361.0,0.96159388]
[1745839146866,0.000425,95367.0,95366.0,0.20971834]
[1745839147076,0.00735538,95394.0,95373.0,0.21454085]
[1745839147438,0.0004246,95408.0,95373.0,0.21454085]
[1745839147439,0.0004246,95408.0,95388.0,0.26931082]
[1745839147640,0.0004246,95408.0,95388.0,0.58726011]
[1745839147812,0.0004246,95408.0,95388.0,0.6066483]
[1745839148137,0.0004246,95408.0,95388.0,0.61636207]
[1745839148494,0.0004246,95408.0,95388.0,0.59697388]
[1745839148699,0.0004246,95408.0,95388.0,0.69567042]
[1745839149530,0.0004246,95408.0,95388.0,0.69667042]
[1745839150141,0.0004246,95408.0,95388.0,0.71323779]
[1745839150340,0.0004246,95408.0,95388.0,0.71423779]
[1745839152016,0.0004246,95408.0,95388.0,0.66913779]
[1745839152497,0.0455,95400.0,95388.0,0.54695591]
[1745839152676,0.0455,95400.0,95388.0,0.2303958]
[1745839152677,0.0498,95393.0,95388.0,0.2303958]
[1745839152846,0.0498,95393.0,95388.0,0.32879579]
[1745839153251,0.0498,95393.0,95388.0,0.31908202]
[1745839153497,0.0498,95393.0,95388.0,0.22068202]
[1745839153679,0.0475,95389.0,95388.0,0.31808202]
[1745839154037,0.0475,95389.0,95388.0,0.00862287]
[1745839154332,0.0475,95389.0,95388.0,0.10702287]
[1745839155097,0.0605,95389.0,95388.0,0.10802287]
[1745839155502,0.0605,95389.0,95388.0,0.00156894]
[1745839156294,0.21828815,95389.0,95388.0,0.00156894]
[1745839156514,0.21619014,95389.0,95388.0,0.00156894]
[1745839157314,0.20419014,95389.0,95388.0,0.01656894]
[1745839157515,0.20628815,95389.0,95388.0,0.01656894]
[1745839157720,0.20528815,95389.0,95388.0,0.00056894]
[1745839157925,0.20628815,95389.0,95388.0,0.01456894]
[1745839158499,0.20828815,95389.0,95388.0,0.02556894]
[1745839158916,0.20628815,95389.0,95388.0,0.01456894]
[1745839159346,0.20828815,95389.0,95388.0,0.01456894]
[1745839160656,0.21564353,95389.0,95388.0,0.01456894]
[1745839161116,0.64103968,95389.0,95388.0,0.01456894]
[1745839161301,0.7632133,95389.0,95388.0,0.01456894]
[1745839161445,0.55354552,95389.0,95388.0,0.01456894]
[1745839162078,0.55354552,95389.0,95388.0,0.01456893]
[1745839163734,0.55354552,95389.0,95388.0,0.21456893]
[1745839165733,0.44665538,95389.0,95388.0,0.21456893]
[1745839165938,0.01235538,95389.0,95388.0,0.21456893]
[1745839166880,0.005,95389.0,95388.0,0.21456892]
[1745839168276,0.00432037,95389.0,95388.0,0.21456892]
[1745839170004,0.00432037,95389.0,95388.0,0.21456891]
[1745839175251,0.00432037,95389.0,95388.0,0.42423888]
[1745839175591,0.00432037,95389.0,95388.0,0.21456891]
[1745839179574,0.00432037,95389.0,95388.0,0.2145689]
[1745839182919,0.01165289,95389.0,95388.0,0.2145689]
[1745839183511,0.01165289,95389.0,95388.0,0.42423887]
[1745839183743,0.00432037,95389.0,95388.0,0.42423887]
[1745839183903,0.00432037,95389.0,95388.0,0.2145689]
[1745839184829,0.00232037,95389.0,95388.0,0.2145689]
[1745839185244,0.00432037,95389.0,95388.0,0.2255689]
[1745839186068,0.00432037,95389.0,95388.0,0.22556889]
[1745839186476,0.01066937,95389.0,95388.0,0.21156889]
[1745839186780,0.01066937,95389.0,95388.0,0.22456889]
[1745839190404,0.01066937,95389.0,95388.0,0.43423886]
[1745839192014,0.01066937,95389.0,95388.0,0.586329]
[1745839192219,0.01066937,95389.0,95388.0,0.61098916]
[1745839192816,0.00132037,95389.0,95388.0,0.59998916]
[1745839193225,0.01132037,95389.0,95388.0,0.60098915]
[1745839193536,0.01132037,95389.0,95388.0,0.58798915]
[1745839198324,0.01132037,95389.0,95388.0,0.58798914]
[1745839200252,0.01132037,95389.0,95388.0,0.435899]
[1745839200454,0.01132037,95389.0,95388.0,0.22622902]
[1745839201530,0.00132037,95389.0,95388.0,0.22522902]
[1745839201819,0.00132037,95389.0,95388.0,0.22922902]
[1745839202020,0.00132037,95389.0,95388.0,0.21556885]
[1745839202242,0.00867395,95389.0,95388.0,0.21556884]
[1745839204019,0.00867395,95389.0,95388.0,0.44535915]
[1745839204790,0.00132037,95389.0,95388.0,0.43035915]
[1745839204986,0.00132037,95389.0,95388.0,0.43735915]
[1745839205185,0.00132037,95389.0,95388.0,0.43135915]
[1745839205389,0.00132037,95389.0,95388.0,0.43135914]
[1745839205592,0.00632037,95389.0,95388.0,0.43135914]
[1745839205789,0.00632037,95389.0,95388.0,0.43035914]
[1745839206005,0.01832037,95389.0,95388.0,0.43135914]
[1745839206854,0.01832037,95389.0,95388.0,0.64102911]
[1745839207036,0.01332037,95389.0,95388.0,0.64102911]
[1745839207618,0.01332037,95389.0,95388.0,0.226229]
[1745839207619,0.01832037,95389.0,95388.0,0.226229]
[1745839207794,0.01332037,95389.0,95388.0,0.226229]
[1745839208098,0.00732037,95389.0,95388.0,0.323469]
[1745839208302,0.01432037,95389.0,95388.0,0.324469]
[1745839208456,0.00832037,95389.0,95388.0,0.324469]
[1745839208636,0.01432037,95389.0,95388.0,0.324469]
[1745839208840,0.00732037,95389.0,95388.0,0.323469]
[1745839209140,0.01432037,95389.0,95388.0,0.324469]
[1745839209578,0.01432037,95389.0,95388.0,0.53413897]
[1745839209982,0.01432037,95389.0,95388.0,0.53413896]
[1745839214410,0.01432037,95389.0,95388.0,0.32446899]
[1745839214761,0.06322037,95389.0,95388.0,0.20156882]
[1745839214958,0.06044221,95389.0,95388.0,0.20156882]
[1745839215393,0.06044221,95389.0,95388.0,0.20156881]
[1745839215721,0.06779724,95389.0,95388.0,0.20156881]
[1745839216506,0.06325503,95389.0,95388.0,0.20156881]
[1745839216906,0.06425503,95389.0,95388.0,0.21656881]
[1745839217268,0.77453122,95389.0,95388.0,0.21556881]
[1745839217468,0.76071295,95389.0,95388.0,0.21556881]
[1745839217668,0.79012983,95389.0,95388.0,0.21156881]
[1745839217940,0.79112983,95389.0,95388.0,0.22556881]
[1745839218142,0.79012983,95389.0,95388.0,0.21456881]
[1745839218343,0.89901997,95389.0,95388.0,0.21856881]
[1745839218702,0.90101997,95389.0,95388.0,0.23356881]
[1745839219459,0.91556082,95389.0,95388.0,0.23356881]
[1745839221289,0.88614394,95389.0,95388.0,0.2335688]
[1745839222707,0.7792538,95389.0,95388.0,0.2335688]
[1745839222914,0.55404517,95389.0,95388.0,0.2335688]
[1745839223592,0.50714517,95389.0,95388.0,0.2335688]
[1745839223807,0.45824517,95389.0,95388.0,0.2335688]
[1745839224131,0.35135503,95389.0,95388.0,0.2335688]
[1745839224543,0.45824517,95389.0,95388.0,0.2335688]
[1745839227471,0.45824517,95389.0,95388.0,0.23356879]
[1745839230043,0.45824517,95389.0,95388.0,0.23356879]
[1745839231253,0.45824517,95389.0,95388.0,0.24290251]
[1745839232001,0.66791295,95389.0,95388.0,0.24290251]
[1745839232198,0.45824517,95389.0,95388.0,0.24290251]
[1745839233539,0.66791295,95389.0,95388.0,0.24290251]
[1745839233761,0.66791295,95389.0,95388.0,0.23356879]
[1745839234851,0.71531295,95389.0,95388.0,0.23356879]
[1745839235292,0.71531295,95389.0,95388.0,0.00347248]
[1745839237332,0.76051295,95389.0,95388.0,0.00347248]
[1745839238400,0.79200295,95389.0,95388.0,0.00347248]
[1745839238899,0.79200295,95389.0,95359.0,0.09812]
[1745839238900,0.01048503,95374.0,95359.0,0.09812]
[1745839239100,0.26132593,95370.0,95359.0,0.09822055]
[1745839239297,0.10898815,95369.0,95368.0,0.1]
[1745839239724,0.10898815,95369.0,95368.0,0.10906186]
[1745839239966,0.10898815,95369.0,95368.0,0.1]
[1745839240180,0.11634318,95369.0,95368.0,0.1]
[1745839241012,0.11634318,95369.0,95368.0,0.109]
[1745839241142,0.11834318,95369.0,95368.0,0.109]
[1745839241348,0.13390276,95369.0,95368.0,0.11806186]
[1745839241552,0.13390276,95369.0,95368.0,0.109]
[1745839241756,0.13390276,95369.0,95368.0,0.11806186]
[1745839244102,0.13390276,95369.0,95368.0,0.109]
[1745839244510,0.13390276,95369.0,95368.0,0.009]
[1745839247808,0.34361451,95369.0,95368.0,0.009]
[1745839248044,0.7301165,95369.0,95368.0,0.009]
[1745839248224,0.76051706,95369.0,95368.0,0.009]
[1745839248743,0.75951706,95369.0,95368.0,0.009]
[1745839248952,0.75851706,95369.0,95368.0,0.009]
[1745839249152,0.54973154,95360.0,95359.0,0.00010055]
[1745839249303,0.65662168,95360.0,95359.0,0.00010055]
[1745839249514,0.66397671,95360.0,95359.0,0.00010055]
[1745839250987,0.66497671,95360.0,95359.0,0.00910055]
[1745839251348,0.77186685,95360.0,95359.0,0.00910055]
[1745839251916,0.77286685,95360.0,95359.0,0.00910055]
[1745839254785,0.848157,95360.0,95359.0,0.00910055]
[1745839255359,0.81876685,95360.0,95359.0,0.00910055]
[1745839255997,0.84815015,95360.0,95359.0,0.00910055]
[1745839256194,0.863691,95360.0,95359.0,0.00910055]
[1745839256400,0.54975353,95350.0,95349.0,0.0008488]
[1745839256632,0.70244367,95350.0,95349.0,0.0009542]
[1745839257198,0.7097987,95350.0,95349.0,0.0009542]
[1745839257401,0.78270904,95350.0,95349.0,0.0009542]
[1745839258741,0.78470904,95350.0,95349.0,0.0029542]
[1745839258941,0.7117987,95350.0,95349.0,0.0029542]
[1745839260781,0.72633955,95350.0,95349.0,0.0029542]
[1745839264734,0.35048888,95339.0,95324.0,0.047643]
[1745839264934,0.35048888,95339.0,95324.0,0.04775348]
[1745839264935,0.34,95337.0,95324.0,0.04775348]
[1745839265139,0.10898815,95336.0,95325.0,0.00938107]
[1745839265440,0.10898815,95336.0,95324.0,0.04775348]
[1745839265597,0.00735503,95335.0,95324.0,0.04775348]
[1745839265815,0.10898815,95334.0,95324.0,0.04775348]
[1745839266456,0.00735503,95333.0,95325.0,0.05814514]
[1745839266856,0.00735503,95333.0,95325.0,0.06863556]
[1745839267095,0.00735503,95349.0,95328.0,0.20980194]
[1745839267292,0.10898815,95348.0,95330.0,0.26132593]
[1745839267651,0.10898815,95348.0,95331.0,0.05545842]
[1745839267980,0.00735503,95347.0,95331.0,0.05545842]
[1745839268242,0.014,95334.0,95331.0,0.05545842]
[1745839268400,0.00735503,95347.0,95331.0,0.05545842]
[1745839268602,0.002,95335.0,95331.0,0.05545842]
[1745839268995,0.00735503,95346.0,95331.0,0.05545842]
[1745839269203,0.00735503,95346.0,95331.0,0.06594818]
[1745839269541,0.016,95334.0,95333.0,0.25839094]
[1745839269743,0.00735503,95345.0,95339.0,0.0453]
[1745839269946,0.00735503,95345.0,95344.0,0.20976673]
[1745839270080,0.00735503,95345.0,95344.0,0.25506673]
[1745839270305,0.00735503,95345.0,95344.0,0.26437062]
[1745839270518,0.007,95346.0,95344.0,0.21907062]
[1745839270725,0.007,95346.0,95345.0,0.0453]
[1745839271143,0.007,95346.0,95345.0,0.05462902]
[1745839272308,0.00735503,95363.0,95345.0,0.05462902]
[1745839272451,0.00209801,95362.0,95345.0,0.05462902]
[1745839272651,0.034,95346.0,95345.0,0.05462902]
[1745839273393,0.017,95346.0,95345.0,0.05462902]
[1745839274272,0.00735503,95361.0,95345.0,0.05462902]
[1745839274868,0.00735503,95360.0,95346.0,0.098]
[1745839275025,0.00735503,95360.0,95347.0,0.00940084]
[1745839275428,0.00735503,95360.0,95348.0,0.0453]
[1745839275629,0.00735503,95359.0,95350.0,0.26132593]
[1745839275850,0.00735503,95359.0,95354.0,0.0477]
[1745839276049,0.00735503,95359.0,95355.0,0.00919257]
[1745839276620,0.001,95360.0,95355.0,0.00919257]
[1745839276832,0.00735503,95368.0,95355.0,0.00919257]
[1745839277043,0.001,95359.0,95355.0,0.00930305]
[1745839277504,0.001,95359.0,95356.0,0.01048701]
[1745839277698,0.001,95359.0,95358.0,0.20973594]
[1745839277896,0.001,95359.0,95358.0,0.26698787]
[1745839278128,0.001,95359.0,95358.0,0.26489082]
[1745839278913,0.00945304,95385.0,95360.0,0.01048657]
[1745839279085,0.34,95383.0,95361.0,0.00919326]
[1745839279294,0.34,95381.0,95361.0,0.00919326]
[1745839279491,0.00209801,95380.0,95361.0,0.00919326]
[1745839279889,0.00735503,95379.0,95361.0,0.00919326]
[1745839280194,0.00209801,95378.0,95361.0,0.00919326]
[1745839280638,0.00209801,95378.0,95362.0,0.09784]
[1745839280952,0.00209801,95378.0,95363.0,0.00916813]
[1745839281096,0.00735503,95377.0,95363.0,0.00916813]
[1745839281296,0.00209801,95376.0,95363.0,0.00916813]
[1745839282404,0.00735503,95375.0,95363.0,0.00916813]
[1745839282622,0.00209801,95374.0,95363.0,0.00916813]
[1745839283055,0.00209801,95374.0,95363.0,0.01016813]
[1745839283260,0.00735503,95380.0,95363.0,0.01016813]
[1745839283470,0.00735503,95380.0,95363.0,0.00916813]
[1745839283671,0.001,95376.0,95363.0,0.01216813]
[1745839283997,0.00945304,95379.0,95363.0,0.01016813]
[1745839284207,0.001,95374.0,95363.0,0.10996813]
[1745839284612,0.00209801,95379.0,95363.0,0.10796813]
[1745839284956,0.001,95376.0,95363.0,0.10896813]
[1745839285089,0.00735503,95380.0,95367.0,0.20971489]
[1745839285301,0.00735503,95380.0,95368.0,0.05506454]
[1745839285505,0.001,95374.0,95370.0,0.05638547]
[1745839285751,0.001,95374.0,95371.0,0.00905225]
[1745839286734,0.00735503,95388.0,95371.0,0.00905225]
[1745839286935,0.001,95379.0,95371.0,0.00905225]
[1745839287161,0.001,95374.0,95371.0,0.01305225]
[1745839287711,0.002,95374.0,95371.0,0.01505225]
[1745839287901,0.001,95374.0,95371.0,0.01305225]
[1745839288196,0.001,95374.0,95371.0,0.01505225]
[1745839288398,0.001,95374.0,95371.0,0.01305225]
[1745839288542,0.001,95374.0,95371.0,0.01505225]
[1745839288747,0.002,95374.0,95371.0,0.01505225]
[1745839288933,0.001,95374.0,95371.0,0.01105225]
[1745839289378,0.001,95374.0,95371.0,0.01236758]
[1745839289793,0.001,95374.0,95371.0,0.01136758]
[1745839290225,0.002,95374.0,95371.0,0.01536758]
[1745839297186,0.00735503,95373.0,95371.0,0.01536758]
[1745839297362,0.00209801,95372.0,95371.0,0.01536758]
[1745839298417,0.00209801,95372.0,95371.0,0.01336758]
[1745839298623,0.00945304,95372.0,95371.0,0.01336758]
[1745839298831,0.01045304,95372.0,95371.0,0.01136758]
[1745839299036,0.00835503,95372.0,95371.0,0.01536758]
[1745839299435,0.00835503,95372.0,95371.0,0.01136758]
[1745839299885,0.00935503,95372.0,95371.0,0.01536758]
[1745839302636,0.16384318,95372.0,95371.0,0.01536758]
[1745839302840,0.71354833,95372.0,95371.0,0.00631533]
[1745839303041,0.71145032,95372.0,95371.0,0.00631533]
[1745839303460,0.50174517,95372.0,95371.0,0.00631533]
[1745839304069,0.34935503,95372.0,95371.0,0.00631533]
[1745839312540,0.45624517,95372.0,95371.0,0.00631533]
[1745839313175,0.66595032,95372.0,95371.0,0.00631533]
[1745839313417,0.76255032,95372.0,95371.0,0.00631533]
[1745839314464,0.76155032,95372.0,95371.0,0.00431533]
[1745839314884,0.76255032,95372.0,95371.0,0.00531533]
[1745839315164,0.55184517,95372.0,95371.0,0.00131533]
[1745839315391,0.65973531,95372.0,95371.0,0.00131533]
[1745839316198,0.86944046,95372.0,95371.0,0.00131533]
[1745839318007,0.01048547,95370.0,95349.0,0.09768]
[1745839318322,0.34,95368.0,95349.0,0.09768]
[1745839318521,0.34,95366.0,95349.0,0.09768]
[1745839318722,0.34,95364.0,95349.0,0.09768]
[1745839318887,0.34,95362.0,95349.0,0.09768]
[1745839319090,0.10951205,95361.0,95349.0,0.09868]
[1745839319298,0.10951205,95361.0,95350.0,0.00771153]
[1745839319523,0.00735503,95360.0,95350.0,0.00771153]
[1745839319727,0.00262191,95359.0,95350.0,0.00771153]
[1745839320392,0.00735503,95358.0,95350.0,0.00771153]
[1745839320614,0.0026219,95357.0,95350.0,0.00771153]
[1745839320816,0.0026219,95356.0,95350.0,0.00771153]
[1745839320992,0.00997693,95356.0,95349.0,0.09968]
[1745839321195,0.00997693,95356.0,95350.0,0.002]
[1745839321394,0.00997693,95356.0,95340.0,0.02805062]
[1745839321395,0.00997693,95356.0,95344.0,0.09768]
[1745839321597,0.00997693,95356.0,95351.0,0.00773098]
[1745839321772,0.00997693,95356.0,95350.0,0.004]
[1745839322381,0.00735503,95355.0,95350.0,0.004]
[1745839322582,0.00262198,95354.0,95350.0,0.004]
[1745839322777,0.00262198,95354.0,95351.0,0.00773046]
[1745839323185,0.00262198,95354.0,95344.0,0.09768]
[1745839323395,0.00262198,95354.0,95352.0,0.00772722]
[1745839323742,0.00735503,95353.0,95350.0,0.002]
[1745839323912,0.00262198,95352.0,95344.0,0.09768]
[1745839324130,0.00262198,95352.0,95344.0,0.09868]
[1745839324333,0.00262198,95352.0,95351.0,0.003]
[1745839324535,0.00262197,95353.0,95344.0,0.09768]
[1745839324859,0.00262198,95352.0,95350.0,0.008]
[1745839325054,0.00262198,95352.0,95350.0,0.005]
[1745839325431,0.01162198,95352.0,95344.0,0.09868]
[1745839325660,0.01162198,95352.0,95344.0,0.09968]
[1745839326306,0.00735802,95351.0,95344.0,0.09968]
[1745839326635,0.00735802,95351.0,95344.0,0.09868]
[1745839326824,0.00735802,95351.0,95344.0,0.09968]
[1745839327040,0.00735802,95351.0,95344.0,0.09868]
[1745839327244,0.00735802,95351.0,95344.0,0.09768]
[1745839327674,0.00735802,95350.0,95344.0,0.09868]
[1745839328387,0.00735802,95350.0,95345.0,0.0478]
[1745839328939,0.01535802,95350.0,95345.0,0.0478]
[1745839329080,0.00735802,95349.0,95345.0,0.0478]
[1745839330137,0.00735802,95348.0,95345.0,0.0478]
[1745839330654,0.00735802,95348.0,95345.0,0.0528]
[1745839330811,0.00735802,95348.0,95345.0,0.005]
[1745839331020,0.00735802,95348.0,95344.0,0.09768]
[1745839331265,0.00735802,95348.0,95345.0,0.01]
[1745839331470,0.00835802,95348.0,95345.0,0.006]
[1745839331661,0.00735802,95347.0,95345.0,0.006]
[1745839332012,0.00735802,95347.0,95345.0,0.004]
[1745839332768,0.00735802,95346.0,95345.0,0.004]
[1745839333844,0.00735802,95346.0,95345.0,0.006]
[1745839334252,0.00735802,95346.0,95345.0,0.004]
[1745839334449,0.00735802,95346.0,95344.0,0.09768]
[1745839334854,0.001,95346.0,95345.0,0.004]
[1745839335084,0.002,95346.0,95345.0,0.01768782]
[1745839335713,0.00936494,95346.0,95345.0,0.01768782]
[1745839336875,0.00936494,95346.0,95345.0,0.01168782]
[1745839337079,0.00836494,95346.0,95345.0,0.01168782]
[1745839337342,0.01536494,95346.0,95345.0,0.01168782]
[1745839337834,0.00836494,95346.0,95345.0,0.01168782]
[1745839338083,0.00936494,95346.0,95345.0,0.01768782]
[1745839338833,0.00936494,95346.0,95345.0,0.22745235]
[1745839339278,0.002,95346.0,95345.0,0.22745235]
[1745839352936,0.002,95346.0,95345.0,0.01768782]
[1745839353138,0.002,95346.0,95345.0,0.32602001]
[1745839353480,0.002,95346.0,95345.0,0.32497235]
[1745839354396,0.002,95346.0,95345.0,0.11520782]
[1745839354529,0.002,95346.0,95345.0,0.11625549]
[1745839354928,0.002,95346.0,95345.0,0.11520782]
[1745839355438,0.00936324,95346.0,95345.0,0.11520782]
[1745839360531,0.00936324,95346.0,95345.0,0.17500782]
[1745839360936,0.00936324,95346.0,95345.0,0.3858205]
[1745839361151,0.00936324,95346.0,95345.0,0.38477235]
[1745839361352,0.00936324,95346.0,95345.0,0.54514698]
[1745839361555,0.002,95389.0,95376.0,0.01048481]
[1745839361762,0.002,95389.0,95384.0,0.20967877]
[1745839362084,0.002,95389.0,95384.0,0.32515917]
[1745839362286,0.002,95389.0,95384.0,0.32411304]
[1745839362924,0.0014246,95385.0,95384.0,0.32722408]
[1745839363454,0.0004246,95385.0,95384.0,0.32422408]
[1745839363648,0.0364246,95385.0,95384.0,0.32622408]
[1745839366494,0.0364246,95385.0,95384.0,0.35088425]
[1745839368944,0.0364246,95385.0,95384.0,0.35109455]
[1745839369964,0.0364246,95385.0,95384.0,0.03452564]
[1745839370137,0.0364246,95385.0,95384.0,0.00986547]
[1745839371557,0.0364246,95385.0,95384.0,0.00599619]
[1745839371873,0.0174246,95385.0,95373.0,0.09732]
[1745839372073,0.00262108,95384.0,95373.0,0.30702272]
[1745839372248,0.00262108,95384.0,95374.0,0.00599261]
[1745839372430,0.00262108,95384.0,95374.0,0.01395902]
[1745839372629,0.00262108,95384.0,95374.0,0.00599261]
[1745839372821,0.0015444,95385.0,95374.0,0.00599261]
[1745839373053,0.0075444,95385.0,95374.0,0.00599261]
[1745839373249,0.01162108,95384.0,95374.0,0.00599261]
[1745839373807,0.00962108,95384.0,95374.0,0.00599261]
[1745839374589,0.02369577,95384.0,95374.0,0.00599261]
[1745839374789,0.02369577,95384.0,95374.0,0.01048503]
[1745839374790,0.007,95384.0,95374.0,0.01048503]
[1745839375017,0.007,95384.0,95375.0,0.00604304]
[1745839375376,0.007,95384.0,95372.0,0.09732]
[1745839375671,0.017,95384.0,95374.0,0.001]
[1745839375889,0.0005444,95385.0,95374.0,0.00788138]
[1745839376097,0.001,95384.0,95375.0,0.001]
[1745839376299,0.002,95384.0,95375.0,0.00904518]
[1745839376534,0.002,95384.0,95375.0,0.001]
[1745839376701,0.001,95384.0,95376.0,0.00603891]
[1745839377053,0.018,95384.0,95374.0,0.001]
[1745839377186,0.018,95384.0,95377.0,0.00603891]
[1745839377546,0.017,95384.0,95378.0,0.00603891]
[1745839377754,0.007,95384.0,95372.0,0.09732]
[1745839377994,0.007,95384.0,95373.0,0.00603891]
[1745839378187,0.00316548,95385.0,95373.0,0.00603891]
[1745839378356,0.0005444,95385.0,95373.0,0.01392579]
[1745839378574,0.0005444,95385.0,95373.0,0.00603891]
[1745839378781,0.0005444,95385.0,95375.0,0.01048492]
[1745839378953,0.0005444,95385.0,95376.0,0.00712766]
[1745839378954,0.002,95384.0,95376.0,0.00712766]
[1745839379154,0.001,95384.0,95376.0,0.00712766]
[1745839379356,0.0005444,95385.0,95376.0,0.00712766]
[1745839379558,0.0105444,95385.0,95376.0,0.00712766]
[1745839379769,0.0075444,95385.0,95376.0,0.00712766]
[1745839379982,0.001,95384.0,95376.0,0.00912766]
[1745839380442,0.0075444,95385.0,95376.0,0.00712766]
[1745839380607,0.0085444,95385.0,95376.0,0.00912766]
[1745839381022,0.0085444,95385.0,95384.0,0.20967877]
[1745839381023,0.0015444,95385.0,95384.0,0.20967877]
[1745839381247,0.0015444,95385.0,95384.0,0.21072461]
[1745839381461,0.0025444,95385.0,95384.0,0.32365541]
[1745839381684,0.0025444,95385.0,95384.0,0.32260957]
[1745839381886,0.0015444,95385.0,95384.0,0.1129308]
[1745839382105,0.0025444,95385.0,95384.0,0.0080863]
[1745839382322,0.0015444,95385.0,95384.0,0.0080863]
[1745839383159,0.0005444,95385.0,95384.0,0.21676507]
[1745839383388,0.0005444,95385.0,95384.0,0.21571943]
[1745839383600,0.0185444,95385.0,95384.0,0.00704066]
[1745839383863,0.0185444,95385.0,95384.0,0.00808636]
[1745839384232,0.0185444,95385.0,95384.0,0.21776513]
[1745839384429,0.0345444,95385.0,95384.0,0.21671943]
[1745839385038,0.0345444,95385.0,95384.0,0.32360957]
[1745839387025,0.0345444,95385.0,95384.0,0.34826974]
[1745839387226,0.0345444,95385.0,95384.0,0.44558974]
[1745839391637,0.0345444,95385.0,95384.0,0.34826974]
[1745839391841,0.0345444,95385.0,95384.0,0.44558974]
[1745839392447,0.0345444,95385.0,95384.0,0.23591097]
[1745839392877,0.0345444,95385.0,95384.0,0.44558974]
[1745839395449,0.0345444,95385.0,95384.0,0.12902083]
[1745839395670,0.0345444,95385.0,95384.0,0.33974535]
[1745839395877,0.0345444,95385.0,95384.0,0.3386996]
[1745839396076,0.0345444,95385.0,95384.0,0.12902083]
[1745839396279,0.0345444,95385.0,95384.0,0.2413796]
[1745839396840,0.0345444,95385.0,95384.0,0.03170083]
[1745839403543,0.0345444,95385.0,95384.0,0.12886083]
[1745839411115,0.04190619,95385.0,95384.0,0.12886083]
[1745839413498,0.04190619,95385.0,95384.0,0.03170083]
[1745839413694,0.0345444,95385.0,95384.0,0.03170083]
[1745839425406,0.04191134,95385.0,95384.0,0.03170083]
[1745839429036,0.04191134,95385.0,95384.0,0.12886083]
[1745839430316,0.04191134,95385.0,95384.0,0.45997059]
[1745839430733,0.0345444,95385.0,95384.0,0.45997059]
[1745839431139,0.0185444,95385.0,95384.0,0.45997059]
[1745839431483,0.0165444,95385.0,95384.0,0.46874776]
[1745839431813,0.0195444,95385.0,95384.0,0.46974776]
[1745839432332,0.0355444,95385.0,95384.0,0.46974776]
[1745839436417,0.0355444,95385.0,95384.0,0.45997059]
[1745839445564,0.0195444,95385.0,95384.0,0.45997059]
[1745839445764,0.0345444,95385.0,95384.0,0.45997059]
[1745839445959,0.0155444,95385.0,95384.0,0.45897059]
[1745839446409,0.0335444,95385.0,95384.0,0.45997059]
[1745839465293,0.0005444,95385.0,95384.0,0.45897059]